fUSD/lending_fUSD_20251130
["ID","MTS","AMOUNT","RATE_DAILY","PERIOD"]
[395143516,1764475845142,-500.0,0.00016973,2]
[395143517,1764475845151,-500.49965341,0.00016973,2]
[395143518,1764475845161,-500.0,0.00016973,2]
[395143519,1764475845171,-500.0,0.00016973,2]
[395143520,1764475845180,-502.42313954,0.00016973,2]
[395143521,1764475845191,-366.95471126,0.00016973,2]
[395143522,1764475845200,-500.0,0.00016973,2]
[395143523,1764475845212,-162.090508,0.00016973,2]
[395143524,1764475845222,-500.0,0.00016973,2]
[395143525,1764475845231,-500.0,0.00016973,2]
[395143526,1764475845241,-500.0,0.00016973,2]
[395143527,1764475845250,-500.0,0.00016973,2]
[395143528,1764475845260,-500.0,0.00016973,2]
[395143529,1764475845270,-500.0,0.00016973,2]
[395143530,1764475845279,-187.03419553,0.00016973,2]
[395143531,1764475845567,-500.0,0.00016973,2]
[395143532,1764475845577,-500.0,0.00016973,2]
[395143533,1764475845587,-500.0,0.00016973,2]
[395143534,1764475845598,-500.0,0.00016973,2]
[395143535,1764475845607,-500.0,0.00016973,2]
[395143536,1764475845616,-500.0,0.00016973,2]
[395143537,1764475845626,-500.0,0.00016973,2]
[395143538,1764475845635,-415.54250471,0.00016973,2]
[395143539,1764475845645,-500.0,0.00016973,2]
[395143540,1764475845655,-500.0,0.00016973,2]
[395143541,1764475845664,-500.0,0.00016973,2]
[395143542,1764475845674,-500.0,0.00016973,2]
[395143543,1764475845683,-500.0,0.00016973,2]
[395143544,1764475845693,-500.0,0.00016973,2]
[395143545,1764475845702,-500.0,0.00016973,2]
[395143546,1764475845712,-500.0,0.00016973,2]
[395143547,1764475845722,-500.0,0.00016973,2]
[395143548,1764475845731,-500.0,0.00016973,2]
[395143549,1764475845740,-281.71884417,0.00016973,2]
[395143550,1764475845749,-150.0,0.00016974,2]
[395143551,1764475845759,-736.0,0.00016977,2]
[395143552,1764475845768,-500.0,0.00016983,2]
[395143553,1764475845777,-500.0,0.00016986,2]
[395143554,1764475845787,-150.0,0.0001699,2]
[395143555,1764475845796,-162.44987593,0.0001699,2]
[395143556,1764475845806,-150.0,0.0001699,2]
[395143557,1764475845816,-150.0,0.0001699,2]
[395143558,1764475845826,-151.84362429,0.0001699,2]
[395143559,1764475845835,-158.23743081,0.0001699,2]
[395143560,1764475845844,-500.0,0.0001699,2]
[395143561,1764475845854,-150.0,0.0001699,2]
[395143562,1764475845863,-150.0,0.0001699,2]
[395143563,1764475845873,-150.0,0.0001699,2]
[395143564,1764475845882,-150.0,0.0001699,2]
[395143565,1764475845892,-150.0,0.0001699,2]
[395143566,1764475845901,-150.0,0.0001699,2]
[395143567,1764475845910,-169.4397301,0.0001699,2]
[395143568,1764475845920,-151.0,0.00016991,2]
[395143569,1764475845929,-500.0,0.00016993,2]
[395143570,1764475845939,-500.0,0.00016993,2]
[395143571,1764475845949,-500.0,0.00016993,2]
[395143572,1764475845958,-500.0,0.00016993,2]
[395143573,1764475845967,-173.88347713,0.00016993,2]
[395143574,1764475845976,-648.97949028,0.00016993,2]
[395143576,1764475845986,-500.0,0.00016993,2]
[395143578,1764475845995,-512.38673853,0.00016993,2]
[395143580,1764475846006,-500.0,0.00016993,2]
[395143582,1764475846015,-243488.6286077,0.00016994,2]
[395143584,1764475846024,-151.0,0.00016997,2]
[395143586,1764475846033,-519.32805224,0.00016999,2]
[395143588,1764475846043,-500.0,0.00016999,2]
[395143590,1764475846052,-500.0,0.00016999,2]
[395143592,1764475846062,-500.0,0.00016999,2]
[395143594,1764475846071,-522.79968162,0.00016999,2]
[395143596,1764475846081,-500.0,0.00016999,2]
[395143598,1764475846090,-547.47201178,0.00016999,2]
[395143599,1764475846099,-509.39630906,0.00016999,2]
[395143600,1764475846108,-500.0,0.00016999,2]
[395143601,1764475846118,-554.66875914,0.00016999,2]
[395143602,1764475846129,-509.0831174,0.00016999,2]
[395143603,1764475846141,-500.0,0.00016999,2]
[395143604,1764475846150,-500.0,0.00016999,2]
[395143605,1764475846161,-500.0,0.00016999,2]
[395143606,1764475846171,-500.0,0.00016999,2]
[395143607,1764475846180,-500.0,0.00016999,2]
[395143608,1764475846190,-500.0,0.00016999,2]
[395143609,1764475846200,-500.0,0.00016999,2]
[395143610,1764475846209,-500.0,0.00016999,2]
[395143611,1764475846219,-500.0,0.00016999,2]
[395143612,1764475846229,-500.0,0.00016999,2]
[395143613,1764475846239,-500.0,0.00016999,2]
[395143614,1764475846249,-2618739.19087279,0.00017,2]
[395143615,1764475846258,-250.0,0.00017,2]
[395143616,1764475846270,-250.0,0.00017,2]
[395143617,1764475846280,-250.0,0.00017,2]
[395143618,1764475846290,-250.0,0.00017,2]
[395143619,1764475846300,-250.0,0.00017,2]
[395143620,1764475846309,-250.0,0.00017,2]
[395143621,1764475846319,-250.0,0.00017,2]
[395143622,1764475846329,-250.0,0.00017,2]
[395143623,1764475846339,-250.0,0.00017,2]
[395143624,1764475846348,-250.0,0.00017,2]
[395143625,1764475846358,-250.0,0.00017,2]
[395143626,1764475846368,-250.0,0.00017,2]
[395143627,1764475846378,-250.0,0.00017,2]
[395143628,1764475846388,-250.0,0.00017,2]
[395143629,1764475846398,-250.0,0.00017,2]
[395143630,1764475846408,-250.0,0.00017,2]
[395143631,1764475846418,-250.0,0.00017,2]
[395143632,1764475846428,-250.0,0.00017,2]
[395143633,1764475846437,-250.0,0.00017,2]
[395143634,1764475846446,-250.0,0.00017,2]
[395143635,1764475846456,-250.0,0.00017,2]
[395143636,1764475846466,-250.0,0.00017,2]
[395143637,1764475846475,-250.0,0.00017,2]
[395143638,1764475846484,-250.0,0.00017,2]
[395143639,1764475846493,-250.0,0.00017,2]
[395143640,1764475846502,-250.0,0.00017,2]
[395143641,1764475846511,-250.0,0.00017,2]
[395143642,1764475846520,-250.0,0.00017,2]
[395143643,1764475846529,-250.0,0.00017,2]
[395143644,1764475846538,-250.0,0.00017,2]
[395143645,1764475846547,-250.0,0.00017,2]
[395143646,1764475846556,-250.0,0.00017,2]
[395143647,1764475846565,-250.0,0.00017,2]
[395143648,1764475846574,-250.0,0.00017,2]
[395143649,1764475846582,-250.0,0.00017,2]
[395143650,1764475846591,-250.0,0.00017,2]
[395143651,1764475846600,-250.0,0.00017,2]
[395143652,1764475846609,-250.0,0.00017,2]
[395143653,1764475846618,-368.8,0.00017,2]
[395143654,1764475846627,-250.0,0.00017,2]
[395143655,1764475846636,-2000.0,0.00017,2]
[395143656,1764475846645,-1248.56965651,0.00017,2]
[395143657,1764475846654,-200.0,0.00017,2]
[395143658,1764475846663,-7012.42730183,0.00017,2]
[395143659,1764475846672,-1784.0,0.00017,2]
[395143660,1764475846681,-276.48820203,0.00017028,2]
[395143661,1764475846691,-2790.0,0.00017067,2]
[395143662,1764475846700,-500.0,0.00017068,2]
[395143663,1764475846709,-686.63342636,0.00017068,2]
[395143664,1764475846719,-1500.0,0.00017068,2]
[395143665,1764475846728,-1500.0,0.00017068,2]
[395143666,1764475846738,-204.30018079,0.00017068,2]
[395143667,1764475846747,-165.6418434,0.00017068,2]
[395143668,1764475846757,-150.10346577,0.00017068,2]
[395143669,1764475846767,-168.80232589,0.00017068,2]
[395143670,1764475846776,-151.57196874,0.00017068,2]
[395143671,1764475846786,-239.89101121,0.00017068,2]
[395143672,1764475846796,-155.69497856,0.00017068,2]
[395143673,1764475846806,-152.51466941,0.00017068,2]
[395143674,1764475846815,-152.10525801,0.00017068,2]
[395143675,1764475846825,-244.26630786,0.00017068,2]
[395143676,1764475846834,-1002.84705647,0.00017068,2]
[395143677,1764475846844,-1500.0,0.00017068,2]
[395143678,1764475846854,-1500.0,0.00017068,2]
[395143679,1764475846864,-1011.85071457,0.00017068,2]
[395143680,1764475846873,-2760.0,0.00017089,2]
[395143681,1764475846883,-2790.0,0.00017099,2]
[395143682,1764475846892,-2760.0,0.00017104,2]
[395143683,1764475846901,-284.96640709,0.00017123,2]
[395143684,1764475846910,-155.60555311,0.00017127,2]
[395143685,1764475846920,-150.0,0.00017127,2]
[395143686,1764475846929,-150.0,0.00017127,2]
[395143687,1764475846938,-500.0,0.00017127,2]
[395143688,1764475846947,-150.0,0.00017127,2]
[395143689,1764475846957,-242.55724109,0.00017127,2]
[395143690,1764475846967,-152.9703148,0.00017127,2]
[395143691,1764475846976,-150.49016812,0.00017127,2]
[395143692,1764475846986,-155.31226656,0.00017127,2]
[395143693,1764475846995,-150.0,0.00017127,2]
[395143694,1764475847004,-270.0,0.00017156,2]
[395143695,1764475847014,-200.0,0.0001717,2]
[395143696,1764475847023,-2155.0,0.00017186,2]
[395143697,1764475847033,-2790.0,0.00017191,2]
[395143698,1764475847043,-2760.0,0.00017197,2]
[395143699,1764475847052,-355.78194,0.0001721,2]
[395143700,1764475847063,-181.49,0.00017213,2]
[395143701,1764475847072,-270.0,0.00017228,2]
[395143702,1764475847081,-236.72605588,0.00017264,2]
[395143703,1764475847090,-207.68168826,0.00017264,2]
[395143704,1764475847099,-500.0,0.00017264,2]
[395143705,1764475847108,-164.06191743,0.00017264,2]
[395143706,1764475847117,-150.0,0.00017264,2]
[395143707,1764475847128,-270.0,0.00017283,2]
[395143708,1764475847140,-200.0,0.00017342,2]
[395143709,1764475847149,-1000.0,0.00017351,2]
[395143710,1764475847159,-164.1,0.00017369,2]
[395143711,1764475847169,-166.66,0.00017381,2]
[395143712,1764475847179,-752.13358325,0.00017399,2]
[395143713,1764475847189,-1000.0,0.00017399,2]
[395143714,1764475847198,-2155.0,0.000174,2]
[395143715,1764475847208,-462.94382989,0.00017401,2]
[395143716,1764475847217,-202.65186002,0.00017401,2]
[395143717,1764475847227,-355.78193,0.0001745,2]
[395143718,1764475847236,-2155.0,0.00017465,2]
[395143719,1764475847245,-823.0,0.00017489,2]
[395143720,1764475847255,-250.0,0.00017492,2]
[395143721,1764475847265,-2155.0,0.00017509,2]
[395143722,1764475847274,-200.0,0.00017515,2]
[395143723,1764475847284,-1000.0,0.00017521,2]
[395143724,1764475847294,-1000.0,0.00017521,2]
[395143725,1764475847304,-339.26563356,0.00017521,2]
[395143726,1764475847314,-1116.40948711,0.00017521,2]
[395143727,1764475847323,-166.09514249,0.00017521,2]
[395143728,1764475847333,-1000.0,0.00017521,2]
[395143729,1764475847342,-1040.53867105,0.00017521,2]
[395143730,1764475847351,-1000.0,0.00017521,2]
[395143731,1764475847361,-506.58830205,0.00017521,2]
[395143732,1764475847370,-1000.0,0.00017521,2]
[395143733,1764475847379,-1000.0,0.00017521,2]
[395143734,1764475847389,-232.40806133,0.00017521,2]
[395143735,1764475847399,-1000.0,0.00017521,2]
[395143736,1764475847408,-1000.0,0.00017521,2]
[395143737,1764475847418,-1000.0,0.00017521,2]
[395143738,1764475847428,-1000.0,0.00017521,2]
[395143739,1764475847439,-1000.0,0.00017521,2]
[395143740,1764475847449,-1000.0,0.00017521,2]
[395143741,1764475847458,-500.75968259,0.00017521,2]
[395143742,1764475847468,-1000.0,0.00017521,2]
[395143743,1764475847477,-1000.0,0.00017521,2]
[395143744,1764475847486,-1000.0,0.00017521,2]
[395143745,1764475847495,-885.86372501,0.00017521,2]
[395143746,1764475847506,-1000.0,0.00017521,2]
[395143747,1764475847516,-1000.0,0.00017521,2]
[395143748,1764475847526,-1000.0,0.00017521,2]
[395143749,1764475847538,-1000.0,0.00017521,2]
[395143750,1764475847547,-269.60073506,0.00017521,2]
[395143751,1764475847556,-783.77865719,0.00017521,2]
[395143752,1764475847565,-1000.0,0.00017521,2]
[395143753,1764475847575,-502.91870547,0.00017521,2]
[395143754,1764475847584,-1008.48113528,0.00017521,2]
[395143755,1764475847594,-772.98303428,0.00017534,2]
[395143756,1764475847603,-270.0,0.00017551,2]
[395143757,1764475847612,-270.0,0.00017586,2]
[395143758,1764475847621,-427.55165138,0.00017607,2]
[395143759,1764475847633,-2000.0,0.00017616,2]
[395143760,1764475847643,-2045.13032417,0.00017616,2]
[395143761,1764475847652,-2000.0,0.00017616,2]
[395143762,1764475847662,-1825.7457569,0.00017616,2]
[395143763,1764475847671,-2155.0,0.00017623,2]
[395143764,1764475847681,-270.0,0.00017627,2]
[395143765,1764475847692,-3292.0,0.00017663,2]
[395143766,1764475847702,-200.0,0.0001769,2]
[395143767,1764475847712,-2000.61,0.000177,2]
[395143768,1764475847721,-355.78194,0.000177,2]
[395143769,1764475847732,-275.5,0.00017854,2]
[395143770,1764475847742,-356.21253512,0.00017865,2]
[395143771,1764475847751,-166.66,0.00017919,2]
[395143772,1764475847760,-322.6107,0.00017945,2]
[395143773,1764475847769,-346.92554585,0.00017945,2]
[395143774,1764475847778,-196.74435859,0.00017945,2]
[395143775,1764475847787,-277.35679052,0.00017945,2]
[395143776,1764475847796,-599.60298507,0.00017946,2]
[395143777,1764475847805,-1000.0,0.00017947,2]
[395143778,1764475847815,-355.78194,0.0001795,2]
[395143779,1764475847824,-2155.0,0.00017952,2]
[395143780,1764475847833,-181.49,0.00017962,2]
[395143781,1764475847843,-1331.33630207,0.00018068,2]
[395143782,1764475847852,-1500.0,0.00018068,2]
[395143783,1764475847984,-1319.78821702,0.00018068,2]
[395143784,1764475847994,-1078.69635007,0.00018068,2]
[395143785,1764475848003,-1500.0,0.00018068,2]
[395143786,1764475848012,-1500.0,0.00018068,2]
[395143787,1764475848021,-1500.0,0.00018068,2]
[395143788,1764475848031,-783.85684935,0.00018068,2]
[395143789,1764475848040,-1363.31336145,0.00018068,2]
[395143790,1764475848049,-1500.0,0.00018068,2]
[395143791,1764475848058,-1500.0,0.00018068,2]
[395143792,1764475848067,-1500.0,0.00018068,2]
[395143793,1764475848077,-1500.0,0.00018068,2]
[395143794,1764475848086,-1500.0,0.00018068,2]
[395143795,1764475848095,-1617.0612163,0.00018068,2]
[395143796,1764475848105,-1002.08828695,0.00018068,2]
[395143797,1764475848114,-1500.0,0.00018068,2]
[395143798,1764475848124,-1008.98472994,0.00018068,2]
[395143799,1764475848140,-1500.0,0.00018068,2]
[395143800,1764475848150,-1500.0,0.00018068,2]
[395143801,1764475848159,-1000.0,0.00018082,2]
[395143802,1764475848171,-2500.0,0.00018164,2]
[395143803,1764475848180,-2500.0,0.00018164,2]
[395143804,1764475848190,-164.1,0.00018205,2]
[395143805,1764475848199,-2792.0,0.00018311,2]
[395143806,1764475848211,-34290.16,0.00018356,2]
[395143807,1764475848220,-1252.0,0.00018394,2]
[395143808,1764475848229,-500.0,0.00018397,2]
[395143809,1764475848238,-250.0,0.000184,2]
[395143810,1764475848247,-157.50894088,0.00018441,2]
[395143811,1764475848256,-164.1,0.00018457,2]
[395143812,1764475848265,-166.66,0.00018457,2]
[395143813,1764475848275,-1600.0,0.00018481,2]
[395143814,1764475848285,-1000.0,0.00018495,2]
[395143815,1764475848294,-512.90563522,0.00018496,2]
[395143816,1764475848303,-2000.0,0.00018616,2]
[395143817,1764475848312,-670.3083358,0.00018616,2]
[395143818,1764475848322,-1494.71155697,0.00018616,2]
[395143819,1764475848331,-2013.71365422,0.00018616,2]
[395143820,1764475848341,-615.0167694,0.00018616,2]
[395143821,1764475848351,-1012.547964,0.00018616,2]
[395143822,1764475848361,-285.08358468,0.00018616,2]
[395143823,1764475848371,-311.57268193,0.00018616,2]
[395143824,1764475848380,-1881.51653045,0.00018616,2]
[395143825,1764475848390,-384.70231475,0.00018616,2]
[395143826,1764475848400,-2000.0,0.00018616,2]
[395143827,1764475848409,-2000.0,0.00018616,2]
[395143828,1764475848420,-181.49,0.0001871,2]
[395143829,1764475848430,-3000.0,0.00018712,2]
[395143830,1764475848440,-3136.66938453,0.00018712,2]
[395143831,1764475848449,-500.0,0.00018718,2]
[395143832,1764475848458,-1000.0,0.0001876,2]
[395143833,1764475848468,-500.0,0.0001888,10]
[395143834,1764475848478,-458.00390684,0.00018962,2]
[395143835,1764475848489,-250.0,0.0001899,2]
[395143836,1764475848498,-250.0,0.0001899,2]
[395143837,1764475848508,-250.0,0.0001899,2]
[395143838,1764475848518,-250.0,0.0001899,2]
[395143839,1764475848532,-166.66,0.00018996,2]
[395143840,1764475848542,-160.0,0.00019,2]
[395143841,1764475848551,-45086.71703294,0.00019,2]
[395143842,1764475848560,-45086.71703294,0.00019,2]
[395143843,1764475848568,-3584.81628149,0.00019,2]
[395143844,1764475848577,-3584.81628149,0.00019,2]
[395143845,1764475848587,-300.0,0.00019,2]
[395143846,1764475848596,-1104.0536043,0.00019,2]
[395143847,1764475848606,-355.75200295,0.0001901,7]
[395143848,1764475848616,-1332.985,0.00019037,2]
[395143849,1764475848625,-1603.0,0.00019037,2]
[395143850,1764475848634,-613.437,0.00019037,2]
[395143851,1764475848643,-3442.0,0.00019037,2]
[395143852,1764475848653,-640.0,0.00019037,2]
[395143853,1764475848662,-1258.0,0.00019037,2]
[395143854,1764475848671,-2721.244,0.00019037,2]
[395143855,1764475848681,-563.939,0.00019037,2]
[395143856,1764475848691,-6506.0,0.00019037,2]
[395143857,1764475848700,-1000.0,0.00019043,2]
[395143858,1764475848710,-210.62,0.00019086,2]
[395143859,1764475848720,-546.86,0.00019086,2]
[395143860,1764475848730,-12951.86469423,0.00019164,2]
[395143861,1764475848739,-150.54892794,0.00019164,2]
[395143862,1764475848747,-2500.0,0.00019164,2]
[395143863,1764475848756,-2500.0,0.00019164,2]
[395143864,1764475848765,-1152.0,0.00019174,2]
[395143865,1764475848775,-3003.55406229,0.00019178,2]
[395143866,1764475848784,-151.0,0.00019178,2]
[395143867,1764475848794,-150.0,0.000192,7]
[395143868,1764475848802,-3505.83917198,0.0001926,2]
[395143869,1764475848811,-1000.0,0.00019278,2]
[395143870,1764475848820,-151.0,0.00019308,2]
[395143871,1764475848829,-500.0,0.0001931,2]
[395143872,1764475848838,-243488.6286077,0.00019311,2]
[395143873,1764475848847,-306.26633586,0.00019314,2]
[395143874,1764475848856,-359.76179104,0.00019314,2]
[395143875,1764475848866,-287.61899177,0.00019314,2]
[395143876,1764475848876,-4609.0,0.0001943,2]
[395143877,1764475848885,-1000.0,0.00019438,2]
[395143878,1764475848894,-181.49,0.00019459,2]
[395143879,1764475848903,-1000.0,0.00019591,2]
[395143880,1764475848912,-1039.78580125,0.00019606,2]
[395143881,1764475848922,-1887.40987809,0.00019712,2]
[395143882,1764475848930,-3004.01174185,0.00019712,2]
[395143883,1764475848939,-156.587,0.00019726,2]
[395143884,1764475848948,-498.79922411,0.00019899,2]
[395143885,1764475848957,-12951.86469423,0.000199,2]
[395143886,1764475848965,-970.0,0.00019918,2]
[395143887,1764475848975,-56121.0,0.0002,7]
[395143888,1764475848984,-10854.24560067,0.0002,2]
[395143889,1764475848993,-265020.18417885,0.0002,5]
[395143890,1764475849002,-3950.0,0.0002,2]
[395143891,1764475849012,-7246.27440636,0.0002,2]
[395143892,1764475849021,-1286.78140138,0.0002,2]
[395143893,1764475849031,-1038.64690825,0.0002,2]
[395143894,1764475849040,-2846.31949952,0.0002,2]
[395143895,1764475849049,-11519.1775924,0.0002,2]
[395143896,1764475849057,-427.45964135,0.0002,7]
[395143897,1764475849066,-266.0,0.0002,2]
[395143898,1764475849075,-5000.46070102,0.0002,2]
[395143899,1764475849084,-185.47,0.0002,2]
[395143900,1764475849093,-8720.0,0.0002001,2]
[395143901,1764475849102,-4500.0,0.00020057,2]
[395143902,1764475849110,-1000.0,0.00020116,2]
[395143903,1764475849119,-4500.0,0.00020119,2]
[395143904,1764475849129,-1148.23339023,0.00020139,2]
[395143905,1764475849140,-747.54,0.00020145,2]
[395143906,1764475849149,-1600.0,0.00020161,2]
[395143907,1764475849157,-858.86,0.00020187,2]
[395143908,1764475849167,-181.49,0.00020207,2]
[395143909,1764475849178,-309.03774685,0.00020274,2]
[395143910,1764475849187,-1900.0,0.00020391,2]
[395143911,1764475849196,-500.0,0.00020478,2]
[395143912,1764475849206,-21390.63,0.00020548,2]
[395143913,1764475849216,-190.9,0.00020548,2]
[395143914,1764475849226,-427.45964135,0.000206,7]
[395143915,1764475849235,-1900.0,0.00020615,2]
[395143916,1764475849244,-1097.0,0.00020638,2]
[395143917,1764475849253,-4500.0,0.00020644,2]
[395143918,1764475849262,-6925.85900991,0.00020661,2]
[395143919,1764475849271,-512.6701011,0.00020683,2]
[395143920,1764475849281,-298.26089446,0.00020683,2]
[395143921,1764475849290,-585.63486001,0.00020685,2]
[395143922,1764475849299,-1900.0,0.00020697,2]
[395143923,1764475849308,-22525.22711556,0.000207,2]
[395143924,1764475849317,-2000.0,0.000207,2]
[395143925,1764475849327,-1900.0,0.00020736,2]
[395143926,1764475849336,-1000.0,0.00020795,2]
[395143927,1764475849345,-985.43015278,0.00020808,2]
[395143928,1764475849354,-4500.0,0.00020934,2]
[395143929,1764475849364,-250.0,0.0002099,2]
[395143930,1764475849374,-250.0,0.0002099,2]
[395143931,1764475849383,-250.0,0.0002099,2]
[395143932,1764475849392,-250.0,0.0002099,2]
[395143933,1764475849402,-250.0,0.0002099,2]
[395143934,1764475849411,-250.0,0.0002099,2]
[395143935,1764475849421,-250.0,0.0002099,2]
[395143936,1764475849430,-250.0,0.0002099,2]
[395143937,1764475849439,-20000.0,0.00021,2]
[395143938,1764475849448,-1185.66399529,0.00021,2]
[395143939,1764475849457,-195.71059099,0.00021,2]
[395143940,1764475849467,-161.11,0.00021,5]
[395143941,1764475849475,-350.0,0.00021,2]
[395143942,1764475849485,-1613.0,0.00021022,2]
[395143943,1764475849494,-1900.0,0.0002106,2]
[395143944,1764475849503,-12440.43,0.00021068,2]
[395143945,1764475849511,-482.26952196,0.00021166,2]
[395143946,1764475849520,-1000.0,0.00021206,2]
[395143947,1764475849529,-1900.0,0.00021227,2]
[395143948,1764475849538,-6341.18,0.0002137,2]
[395143949,1764475849548,-6453.0,0.00021373,2]
[395143950,1764475849558,-57202.2535973,0.000215,2]
[395143951,1764475849567,-220.72797249,0.000215,2]
[395143952,1764475849577,-500.99055196,0.00021519,2]
[395143953,1764475849586,-4500.0,0.00021524,2]
[395143954,1764475849595,-310.68826752,0.0002156,2]
[395143955,1764475849605,-243488.6286077,0.00021628,2]
[395143956,1764475849615,-500.0,0.00021717,2]
[395143957,1764475849626,-1097.0,0.00021725,2]
[395143958,1764475849636,-11240.54,0.00021749,2]
[395143959,1764475849645,-150.091,0.000218,2]
[395143960,1764475849654,-250.0,0.000218,2]
[395143961,1764475849663,-185.387,0.000218,2]
[395143962,1764475849674,-150.118,0.000218,2]
[395143963,1764475849684,-150.0,0.000218,2]
[395143964,1764475849693,-150.0,0.000218,2]
[395143965,1764475849703,-150.096,0.000218,2]
[395143966,1764475849714,-150.0,0.000218,2]
[395143967,1764475849724,-5000.0,0.00021918,2]
[395143968,1764475849733,-150.0,0.00021918,2]
[395143969,1764475849742,-150.0,0.00021918,2]
[395143970,1764475849752,-150.0,0.00021918,2]
[395143971,1764475849761,-1900.0,0.00021955,2]
[395143972,1764475849771,-4154.46136322,0.00022,2]
[395143973,1764475849780,-24120.82070754,0.00022,2]
[395143974,1764475849789,-667.64,0.00022,7]
[395143975,1764475849799,-4120.20313394,0.00022,2]
[395143976,1764475849809,-160.97,0.00022,2]
[395143977,1764475849819,-254.54546919,0.00022,2]
[395143978,1764475849828,-160.0,0.00022,2]
[395143979,1764475849837,-152.0,0.00022,2]
[395143980,1764475849846,-152.0,0.00022,2]
[395143981,1764475849855,-152.0,0.00022,2]
[395143982,1764475849864,-152.0,0.00022,2]
[395143983,1764475849873,-152.0,0.00022,2]
[395143984,1764475849881,-152.0,0.00022,2]
[395143985,1764475849891,-152.0,0.00022,2]
[395143986,1764475849900,-152.0,0.00022,2]
[395143987,1764475849909,-200.0,0.00022,2]
[395143988,1764475849918,-1250.0,0.00022,2]
[395143989,1764475849927,-1250.0,0.00022,2]
[395143990,1764475849936,-157.0,0.00022,2]
[395143991,1764475849945,-152.0,0.00022,2]
[395143992,1764475849954,-151.0,0.00022,2]
[395143993,1764475849963,-151.0,0.00022,2]
[395143994,1764475849973,-1250.0,0.00022,2]
[395143995,1764475849982,-151.0,0.00022,2]
[395143996,1764475849991,-1266.85215459,0.00022,2]
[395143997,1764475850000,-1250.0,0.00022,2]
[395143998,1764475850009,-1250.0,0.00022,2]
[395143999,1764475850018,-153.0,0.00022,2]
[395144000,1764475850027,-153.0,0.00022,2]
[395144001,1764475850037,-153.0,0.00022,2]
[395144002,1764475850046,-153.0,0.00022,2]
[395144003,1764475850056,-153.0,0.00022,2]
[395144004,1764475850065,-153.0,0.00022,2]
[395144005,1764475850074,-971.0,0.00022,2]
[395144006,1764475850082,-152.0,0.00022,2]
[395144007,1764475850091,-152.0,0.00022,2]
[395144008,1764475850100,-152.0,0.00022,2]
[395144009,1764475850109,-152.0,0.00022,2]
[395144010,1764475850118,-152.0,0.00022,2]
[395144011,1764475850128,-152.0,0.00022,2]
[395144012,1764475850140,-152.0,0.00022,2]
[395144013,1764475850148,-1250.0,0.00022,2]
[395144014,1764475850159,-1250.0,0.00022,2]
[395144015,1764475850169,-453.80110398,0.00022,2]
[395144016,1764475850181,-151.0,0.00022,2]
[395144017,1764475850190,-151.0,0.00022,2]
[395144018,1764475850200,-176.888208,0.00022,2]
[395144019,1764475850210,-328.662928,0.00022,2]
[395144020,1764475850220,-151.0,0.00022,2]
[395144021,1764475850231,-328.662928,0.00022,2]
[395144022,1764475850240,-151.0,0.00022,2]
[395144023,1764475850250,-328.662928,0.00022,2]
[395144024,1764475850259,-151.0,0.00022,2]
[395144025,1764475850269,-328.662928,0.00022,2]
[395144026,1764475850278,-151.0,0.00022,2]
[395144027,1764475850288,-1900.0,0.0002202,2]